[Event "Early-Titled-Tuesday-Blitz-October-10-2023"]
[Site "Chess.com"]
[Date "2023.10.10"]
[Round "10"]
[White "salomez"]
[Black "atalz0"]
[Result "0-1"]
[WhiteElo "2323"]
[BlackElo "2490"]
[TimeControl "180+1"]
[EndTime "9:54:07 PDT"]
[Termination "atalz0 won by resignation"]

1. d4 {[%clk 0:03:00.9]} 1... Nf6 {[%clk 0:02:57.6]} 2. Nc3 {[%clk 0:03:00.6]}
2... d5 {[%clk 0:02:56.1]} 3. Bf4 {[%clk 0:03:00.2]} 3... c5 {[%clk 0:02:46.6]}
4. e3 {[%clk 0:02:59.5]} 4... cxd4 {[%clk 0:02:44.8]} 5. exd4 {[%clk 0:03:00.4]}
5... Bg4 {[%clk 0:02:44.5]} 6. Qd2 {[%clk 0:02:58.6]} 6... Nc6 {[%clk
0:02:41.3]} 7. f3 {[%clk 0:02:53.5]} 7... Bd7 {[%clk 0:02:37.5]} 8. g4 {[%clk
0:02:25.8]} 8... e6 {[%clk 0:02:35.6]} 9. O-O-O {[%clk 0:02:09.5]} 9... a6
{[%clk 0:02:30.9]} 10. Nge2 {[%clk 0:01:54.3]} 10... b5 {[%clk 0:02:26.8]} 11.
Kb1 {[%clk 0:01:39.5]} 11... b4 {[%clk 0:01:45.3]} 12. Na4 {[%clk 0:01:38.3]}
12... Qa5 {[%clk 0:01:45.3]} 13. Nc5 {[%clk 0:01:33.5]} 13... Bxc5 {[%clk
0:01:41.5]} 14. dxc5 {[%clk 0:01:33]} 14... Qxc5 {[%clk 0:01:41.2]} 15. g5
{[%clk 0:01:28.1]} 15... Nh5 {[%clk 0:01:39.6]} 16. Be3 {[%clk 0:01:28.4]} 16...
Qe7 {[%clk 0:01:35.4]} 17. f4 {[%clk 0:01:27.7]} 17... Na5 {[%clk 0:00:59.9]}
18. Ng3 {[%clk 0:01:26.9]} 18... Nxg3 {[%clk 0:00:57.2]} 19. hxg3 {[%clk
0:01:27.8]} 19... Bb5 {[%clk 0:00:44.7]} 20. Bd4 {[%clk 0:01:12.1]} 20... Bxf1
{[%clk 0:00:37]} 21. Rdxf1 {[%clk 0:00:59.8]} 21... f6 {[%clk 0:00:18.9]} 22.
gxf6 {[%clk 0:00:57.2]} 22... gxf6 {[%clk 0:00:19.8]} 23. Re1 {[%clk 0:00:54.4]}
23... Nc4 {[%clk 0:00:17.7]} 24. Qd3 {[%clk 0:00:53.9]} 24... Kd7 {[%clk
0:00:16.6]} 25. Rh6 {[%clk 0:00:52.5]} 25... Raf8 {[%clk 0:00:14.2]} 26. f5
{[%clk 0:00:45.8]} 26... e5 {[%clk 0:00:13.1]} 27. b3 {[%clk 0:00:28]} 27...
Na3+ {[%clk 0:00:12.4]} 28. Ka1 {[%clk 0:00:27.5]} 28... Qd6 {[%clk 0:00:11.7]}
29. Bxe5 {[%clk 0:00:25.5]} 29... Re8 {[%clk 0:00:07.9]} 30. Qxa6 {[%clk
0:00:14.4]} 30... Qxa6 {[%clk 0:00:07.2]} 31. Rd1 {[%clk 0:00:10.7]} 31... Rxe5
{[%clk 0:00:06.9]} 32. Rh4 {[%clk 0:00:09.1]} 32... Qe2 {[%clk 0:00:06.7]} 33.
Rhd4 {[%clk 0:00:08.2]} 33... Qxc2 {[%clk 0:00:06.7]} 0-1

[Event "Early-Titled-Tuesday-Blitz-October-10-2023"]
[Site "Chess.com"]
[Date "2023.10.10"]
[Round "10"]
[White "a-z30"]
[Black "invisible_s0ul"]
[Result "1-0"]
[WhiteElo "2468"]
[BlackElo "2299"]
[TimeControl "180+1"]
[EndTime "9:54:07 PDT"]
[Termination "a-z30 won by resignation"]

1. c4 {[%clk 0:03:00.9]} 1... c5 {[%clk 0:02:47.3]} 2. Nf3 {[%clk 0:02:59.9]}
2... Nf6 {[%clk 0:02:45.9]} 3. Nc3 {[%clk 0:02:59]} 3... Nc6 {[%clk 0:02:43.1]}
4. e3 {[%clk 0:02:57.3]} 4... d5 {[%clk 0:02:40.9]} 5. cxd5 {[%clk 0:02:53.5]}
5... Nxd5 {[%clk 0:02:41.8]} 6. Bc4 {[%clk 0:02:52.6]} 6... e6 {[%clk
0:02:29.5]} 7. O-O {[%clk 0:02:51.7]} 7... Be7 {[%clk 0:02:28.9]} 8. d4 {[%clk
0:02:37.8]} 8... cxd4 {[%clk 0:02:29.8]} 9. exd4 {[%clk 0:02:25.4]} 9... Nb6
{[%clk 0:02:22.8]} 10. Bd3 {[%clk 0:02:22.8]} 10... Bf6 {[%clk 0:02:18.3]} 11.
Be3 {[%clk 0:02:17.1]} 11... O-O {[%clk 0:02:10]} 12. a3 {[%clk 0:02:15]} 12...
Kh8 {[%clk 0:02:01.7]} 13. Bc2 {[%clk 0:02:11]} 13... g6 {[%clk 0:01:50.1]} 14.
Qe2 {[%clk 0:01:25.6]} 14... Nd5 {[%clk 0:01:23.2]} 15. Bh6 {[%clk 0:01:07.7]}
15... Re8 {[%clk 0:01:19.4]} 16. Ne4 {[%clk 0:01:05.8]} 16... Bg7 {[%clk
0:01:13.3]} 17. Qd2 {[%clk 0:00:55.9]} 17... Nf6 {[%clk 0:01:07.1]} 18. Neg5
{[%clk 0:00:46.6]} 18... Qe7 {[%clk 0:00:50.6]} 19. Bxg7+ {[%clk 0:00:44.1]}
19... Kxg7 {[%clk 0:00:51.5]} 20. Ne5 {[%clk 0:00:41.1]} 20... Nxe5 {[%clk
0:00:48]} 21. dxe5 {[%clk 0:00:40.5]} 21... Nd7 {[%clk 0:00:43.4]} 22. f4 {[%clk
0:00:30.6]} 22... h6 {[%clk 0:00:42.8]} 23. Ne4 {[%clk 0:00:30.2]} 23... Nc5
{[%clk 0:00:40.9]} 24. Nd6 {[%clk 0:00:29]} 24... Rd8 {[%clk 0:00:41]} 25. b4
{[%clk 0:00:28.2]} 25... Nd7 {[%clk 0:00:35.7]} 26. Rac1 {[%clk 0:00:22.2]}
26... Nb6 {[%clk 0:00:27.9]} 27. Be4 {[%clk 0:00:20.8]} 27... Nd5 {[%clk
0:00:17.5]} 28. Bxd5 {[%clk 0:00:19.4]} 28... exd5 {[%clk 0:00:18.4]} 29. Qxd5
{[%clk 0:00:19.7]} 29... Be6 {[%clk 0:00:19]} 30. Qxb7 {[%clk 0:00:18.4]} 30...
Qh4 {[%clk 0:00:16.8]} 31. Qf3 {[%clk 0:00:16.1]} 31... Rd7 {[%clk 0:00:11.9]}
32. h3 {[%clk 0:00:15.2]} 32... Rad8 {[%clk 0:00:10.7]} 33. Kh2 {[%clk
0:00:15.3]} 33... Qe7 {[%clk 0:00:10.7]} 34. Rc3 {[%clk 0:00:13]} 34... Rc7
{[%clk 0:00:09.8]} 35. Rfc1 {[%clk 0:00:12.2]} 35... Rdd7 {[%clk 0:00:08.7]} 36.
Rxc7 {[%clk 0:00:11.4]} 36... Rxc7 {[%clk 0:00:09.6]} 37. Rxc7 {[%clk
0:00:10.9]} 37... Qxc7 {[%clk 0:00:10.5]} 38. Ne8+ {[%clk 0:00:11.1]} 1-0

[Event "Early-Titled-Tuesday-Blitz-October-10-2023"]
[Site "Chess.com"]
[Date "2023.10.10"]
[Round "10"]
[White "NovozhilovSemen"]
[Black "valemava"]
[Result "1-0"]
[WhiteElo "2628"]
[BlackElo "2319"]
[TimeControl "180+1"]
[EndTime "9:54:09 PDT"]
[Termination "NovozhilovSemen won by checkmate"]

1. d4 {[%clk 0:03:00.9]} 1... c6 {[%clk 0:02:59.3]} 2. c4 {[%clk 0:03:00.7]}
2... b5 {[%clk 0:02:59.5]} 3. cxb5 {[%clk 0:02:57.5]} 3... cxb5 {[%clk
0:03:00.4]} 4. Nf3 {[%clk 0:02:57.9]} 4... Bb7 {[%clk 0:03:00.5]} 5. e3 {[%clk
0:02:58.3]} 5... a6 {[%clk 0:03:00.6]} 6. Bd3 {[%clk 0:02:58.6]} 6... Nf6 {[%clk
0:03:00]} 7. O-O {[%clk 0:02:58.7]} 7... g6 {[%clk 0:03:00.1]} 8. a4 {[%clk
0:02:59.1]} 8... b4 {[%clk 0:02:59.6]} 9. Nbd2 {[%clk 0:02:59.1]} 9... Bg7
{[%clk 0:02:58.9]} 10. e4 {[%clk 0:02:58.6]} 10... a5 {[%clk 0:02:58.2]} 11. b3
{[%clk 0:02:58.5]} 11... O-O {[%clk 0:02:56.9]} 12. Qe2 {[%clk 0:02:58.1]} 12...
d6 {[%clk 0:02:56.5]} 13. Bb2 {[%clk 0:02:58]} 13... Ba6 {[%clk 0:02:56.5]} 14.
Rac1 {[%clk 0:02:57.3]} 14... Bxd3 {[%clk 0:02:56]} 15. Qxd3 {[%clk 0:02:58.2]}
15... Nbd7 {[%clk 0:02:56.1]} 16. h3 {[%clk 0:02:58.1]} 16... d5 {[%clk
0:02:47.2]} 17. e5 {[%clk 0:02:57.7]} 17... Ne8 {[%clk 0:02:46.7]} 18. Rc6
{[%clk 0:02:57.6]} 18... Nc7 {[%clk 0:02:39.7]} 19. Rfc1 {[%clk 0:02:55.9]}
19... Ne6 {[%clk 0:02:39.2]} 20. Nf1 {[%clk 0:02:50.8]} 20... Bh6 {[%clk
0:02:34.1]} 21. Rd1 {[%clk 0:02:45.6]} 21... Nb8 {[%clk 0:02:33.3]} 22. Rc2
{[%clk 0:02:45.1]} 22... Qd7 {[%clk 0:02:30.2]} 23. Ne3 {[%clk 0:02:44.6]} 23...
Nc6 {[%clk 0:02:27.9]} 24. Qb5 {[%clk 0:02:38.5]} 24... Rfc8 {[%clk 0:02:23.9]}
25. Rdc1 {[%clk 0:02:38.3]} 25... Bxe3 {[%clk 0:02:17.3]} 26. fxe3 {[%clk
0:02:32.4]} 26... Ned8 {[%clk 0:02:05.3]} 27. Ne1 {[%clk 0:02:22.9]} 27... Rab8
{[%clk 0:01:59.7]} 28. Qe2 {[%clk 0:02:22.1]} 28... f6 {[%clk 0:01:45.2]} 29.
Nd3 {[%clk 0:02:16.7]} 29... Qf5 {[%clk 0:01:36]} 30. Nc5 {[%clk 0:02:12.8]}
30... fxe5 {[%clk 0:01:28.7]} 31. dxe5 {[%clk 0:02:13.7]} 31... Nxe5 {[%clk
0:01:27.5]} 32. Bxe5 {[%clk 0:02:14.6]} 32... Qxe5 {[%clk 0:01:26.4]} 33. Nd7
{[%clk 0:02:14.6]} 33... Rxc2 {[%clk 0:01:24.8]} 34. Rxc2 {[%clk 0:01:54.5]}
34... Qa1+ {[%clk 0:01:23.3]} 35. Kh2 {[%clk 0:01:52.9]} 35... Rb7 {[%clk
0:01:23.3]} 36. Qg4 {[%clk 0:01:45.6]} 36... Nf7 {[%clk 0:01:12.3]} 37. Qe6
{[%clk 0:01:26.3]} 37... Rxd7 {[%clk 0:01:09.4]} 38. Qxd7 {[%clk 0:01:23.4]}
38... Qe5+ {[%clk 0:01:07.8]} 39. g3 {[%clk 0:01:23.2]} 39... Qxe3 {[%clk
0:01:02.4]} 40. Qxd5 {[%clk 0:01:21.7]} 40... Kg7 {[%clk 0:01:02]} 41. Kg2
{[%clk 0:01:19.3]} 41... Nd6 {[%clk 0:00:59]} 42. Qf3 {[%clk 0:01:15]} 42... Qe6
{[%clk 0:00:52.4]} 43. Re2 {[%clk 0:01:14.1]} 43... Qd7 {[%clk 0:00:47.5]} 44.
g4 {[%clk 0:01:14.4]} 44... Nf7 {[%clk 0:00:45.8]} 45. Qe4 {[%clk 0:01:12.7]}
45... e5 {[%clk 0:00:45.9]} 46. Rf2 {[%clk 0:01:06.9]} 46... Qe6 {[%clk
0:00:45.9]} 47. h4 {[%clk 0:01:04.3]} 47... Qxb3 {[%clk 0:00:44.7]} 48. g5
{[%clk 0:01:01.7]} 48... Qxa4 {[%clk 0:00:43.2]} 49. Qf3 {[%clk 0:00:57.3]}
49... Qe8 {[%clk 0:00:41.5]} 50. Qf6+ {[%clk 0:00:57.3]} 50... Kg8 {[%clk
0:00:41.5]} 51. h5 {[%clk 0:00:54.1]} 51... Nh8 {[%clk 0:00:22.3]} 52. h6 {[%clk
0:00:51.7]} 52... Qa8+ {[%clk 0:00:11.3]} 53. Kh2 {[%clk 0:00:50.4]} 53... Qa7
{[%clk 0:00:06.3]} 54. Qf8# {[%clk 0:00:48.6]} 1-0

[Event "Early-Titled-Tuesday-Blitz-October-10-2023"]
[Site "Chess.com"]
[Date "2023.10.10"]
[Round "10"]
[White "Rsnr"]
[Black "GMBenjaminBok"]
[Result "1-0"]
[WhiteElo "2870"]
[BlackElo "3009"]
[TimeControl "180+1"]
[EndTime "9:54:11 PDT"]
[Termination "Rsnr won by checkmate"]

1. d4 {[%clk 0:03:00.9]} 1... Nf6 {[%clk 0:02:59]} 2. c4 {[%clk 0:03:01.5]} 2...
e6 {[%clk 0:02:59.3]} 3. Nf3 {[%clk 0:03:01.9]} 3... b6 {[%clk 0:02:59.3]} 4. a3
{[%clk 0:03:01.8]} 4... Bb7 {[%clk 0:02:59.3]} 5. Nc3 {[%clk 0:03:02.1]} 5... d5
{[%clk 0:02:59.7]} 6. Bg5 {[%clk 0:03:02.4]} 6... Be7 {[%clk 0:02:59.3]} 7. Bxf6
{[%clk 0:03:02.8]} 7... Bxf6 {[%clk 0:02:59.7]} 8. cxd5 {[%clk 0:03:03.7]} 8...
exd5 {[%clk 0:03:00.2]} 9. g3 {[%clk 0:03:04.6]} 9... O-O {[%clk 0:02:56.6]} 10.
Bg2 {[%clk 0:03:05.2]} 10... Na6 {[%clk 0:02:53.4]} 11. O-O {[%clk 0:03:05.4]}
11... c5 {[%clk 0:02:47.3]} 12. Rc1 {[%clk 0:03:02.4]} 12... Qe7 {[%clk
0:02:42.1]} 13. Re1 {[%clk 0:02:43.6]} 13... Rfd8 {[%clk 0:02:38.4]} 14. e3
{[%clk 0:02:39.1]} 14... Nc7 {[%clk 0:02:36.4]} 15. Qc2 {[%clk 0:02:21.5]} 15...
Ne6 {[%clk 0:02:33.2]} 16. Rcd1 {[%clk 0:02:21.1]} 16... Rac8 {[%clk 0:02:28.3]}
17. h4 {[%clk 0:02:20.6]} 17... g6 {[%clk 0:02:12.2]} 18. Qd3 {[%clk 0:01:58.7]}
18... a6 {[%clk 0:01:53.9]} 19. Ne5 {[%clk 0:01:51.2]} 19... Bxe5 {[%clk
0:01:22.4]} 20. dxe5 {[%clk 0:01:52.1]} 20... d4 {[%clk 0:01:23.3]} 21. exd4
{[%clk 0:01:10.8]} 21... Nxd4 {[%clk 0:01:23.1]} 22. Bxb7 {[%clk 0:01:03.3]}
22... Qxb7 {[%clk 0:01:24]} 23. Ne4 {[%clk 0:01:03.8]} 23... Kg7 {[%clk
0:01:12.2]} 24. h5 {[%clk 0:01:03.9]} 24... gxh5 {[%clk 0:01:02.7]} 25. Qe3
{[%clk 0:01:00.9]} 25... Qc6 {[%clk 0:00:55.1]} 26. Nd6 {[%clk 0:00:38.2]} 26...
Rxd6 {[%clk 0:00:14.9]} 27. exd6 {[%clk 0:00:39.1]} 27... Qxd6 {[%clk
0:00:14.3]} 28. Kg2 {[%clk 0:00:32.4]} 28... Qg6 {[%clk 0:00:11]} 29. Qe5+
{[%clk 0:00:31.3]} 29... Kg8 {[%clk 0:00:11]} 30. Re4 {[%clk 0:00:27.6]} 30...
Rf8 {[%clk 0:00:06.8]} 31. Rh1 {[%clk 0:00:16.1]} 31... f5 {[%clk 0:00:06.4]}
32. Qd5+ {[%clk 0:00:11.7]} 32... Kh8 {[%clk 0:00:04.8]} 33. Re7 {[%clk
0:00:11.8]} 33... f4 {[%clk 0:00:03.8]} 34. Qe5+ {[%clk 0:00:11.8]} 34... Kg8
{[%clk 0:00:03.5]} 35. Rxh5 {[%clk 0:00:11]} 35... fxg3 {[%clk 0:00:03.4]} 36.
Rg5 {[%clk 0:00:10.5]} 36... Rxf2+ {[%clk 0:00:02.7]} 37. Kxg3 {[%clk
0:00:10.7]} 37... Nf5+ {[%clk 0:00:02.7]} 38. Kxf2 {[%clk 0:00:09.8]} 38... Qxg5
{[%clk 0:00:03.1]} 39. Re8+ {[%clk 0:00:09.9]} 39... Kf7 {[%clk 0:00:03.7]} 40.
Qe6+ {[%clk 0:00:10.2]} 40... Kg7 {[%clk 0:00:04.1]} 41. Rg8# {[%clk 0:00:10.8]}
1-0

[Event "Early-Titled-Tuesday-Blitz-October-10-2023"]
[Site "Chess.com"]
[Date "2023.10.10"]
[Round "10"]
[White "WelshTiger"]
[Black "Bilan_Danila"]
[Result "1-0"]
[WhiteElo "2446"]
[BlackElo "2579"]
[TimeControl "180+1"]
[EndTime "9:54:14 PDT"]
[Termination "WelshTiger won on time"]

1. e4 {[%clk 0:03:00.9]} 1... c6 {[%clk 0:02:55.8]} 2. d4 {[%clk 0:02:59.2]}
2... d5 {[%clk 0:02:56.7]} 3. Nd2 {[%clk 0:02:59.5]} 3... dxe4 {[%clk
0:02:55.9]} 4. Nxe4 {[%clk 0:03:00.4]} 4... Bf5 {[%clk 0:02:55.9]} 5. Ng3 {[%clk
0:03:00.5]} 5... Bg6 {[%clk 0:02:56.3]} 6. Nh3 {[%clk 0:03:00.9]} 6... e5 {[%clk
0:02:55.9]} 7. dxe5 {[%clk 0:02:56.9]} 7... Qa5+ {[%clk 0:02:55.9]} 8. Qd2
{[%clk 0:02:49.5]} 8... Qxe5+ {[%clk 0:02:53.2]} 9. Be2 {[%clk 0:02:50]} 9...
Nf6 {[%clk 0:02:43.8]} 10. O-O {[%clk 0:02:48.6]} 10... Bc5 {[%clk 0:02:32.1]}
11. c3 {[%clk 0:02:41.1]} 11... O-O {[%clk 0:02:25.6]} 12. Qf4 {[%clk
0:02:41.4]} 12... Nbd7 {[%clk 0:02:12.1]} 13. Qxe5 {[%clk 0:02:39.8]} 13... Nxe5
{[%clk 0:02:13]} 14. Nf4 {[%clk 0:02:40.2]} 14... Bc2 {[%clk 0:01:57.6]} 15. b4
{[%clk 0:02:24.9]} 15... Bb6 {[%clk 0:01:49.7]} 16. a4 {[%clk 0:02:24.8]} 16...
a5 {[%clk 0:01:43]} 17. b5 {[%clk 0:02:24.6]} 17... Rfe8 {[%clk 0:01:38.8]} 18.
bxc6 {[%clk 0:02:03.2]} 18... bxc6 {[%clk 0:01:36.8]} 19. Ra2 {[%clk 0:02:03.7]}
19... Be4 {[%clk 0:01:16.9]} 20. Ba3 {[%clk 0:01:53.3]} 20... Nfg4 {[%clk
0:00:26.1]} 21. Nxe4 {[%clk 0:01:51]} 21... f5 {[%clk 0:00:19.9]} 22. Nc5 {[%clk
0:01:42.4]} 22... Rad8 {[%clk 0:00:13.5]} 23. h3 {[%clk 0:01:37.6]} 23... Nf6
{[%clk 0:00:12.5]} 24. Rd1 {[%clk 0:01:34.1]} 24... Rxd1+ {[%clk 0:00:11.7]} 25.
Bxd1 {[%clk 0:01:34.5]} 25... g5 {[%clk 0:00:12.3]} 26. Bb3+ {[%clk 0:01:33.9]}
26... Kg7 {[%clk 0:00:11.3]} 27. Nfe6+ {[%clk 0:01:34]} 27... Kg6 {[%clk
0:00:10.6]} 28. Re2 {[%clk 0:01:28.4]} 28... Nf7 {[%clk 0:00:05]} 29. Nd4 {[%clk
0:01:23.9]} 29... Rxe2 {[%clk 0:00:04.4]} 30. Nxe2 {[%clk 0:01:24.2]} 30... Bxc5
{[%clk 0:00:03.4]} 31. Bxc5 {[%clk 0:01:23.9]} 31... Ne4 {[%clk 0:00:04.3]} 32.
Bxf7+ {[%clk 0:01:18.4]} 32... Kxf7 {[%clk 0:00:03.8]} 33. Bb6 {[%clk 0:01:19]}
33... Ke6 {[%clk 0:00:03.2]} 34. Bxa5 {[%clk 0:01:19.3]} 34... Kd5 {[%clk
0:00:04.1]} 35. Bb6 {[%clk 0:01:18.9]} 35... Kc4 {[%clk 0:00:04.5]} 36. Bd4
{[%clk 0:01:18.4]} 36... c5 {[%clk 0:00:04.5]} 37. Bg7 {[%clk 0:01:15.7]} 37...
Kd3 {[%clk 0:00:05.1]} 38. Ng3 {[%clk 0:01:13.7]} 38... Nxc3 {[%clk 0:00:04.4]}
39. Nxf5 {[%clk 0:01:14]} 39... Nxa4 {[%clk 0:00:04.5]} 40. Bf6 {[%clk
0:01:06.5]} 40... c4 {[%clk 0:00:03.9]} 41. Bxg5 {[%clk 0:01:00.2]} 41... c3
{[%clk 0:00:04.5]} 42. h4 {[%clk 0:00:59.7]} 42... c2 {[%clk 0:00:05.1]} 43. Kf1
{[%clk 0:00:56]} 43... Nc3 {[%clk 0:00:05.5]} 44. Ke1 {[%clk 0:00:56.2]} 44...
Ne4 {[%clk 0:00:05.9]} 45. Bf4 {[%clk 0:00:55.6]} 45... Nf6 {[%clk 0:00:05.4]}
46. f3 {[%clk 0:00:52.5]} 46... Nd5 {[%clk 0:00:05.4]} 47. Bd2 {[%clk
0:00:51.5]} 47... Nb4 {[%clk 0:00:03.1]} 48. g4 {[%clk 0:00:49.1]} 48... Na2
{[%clk 0:00:03.5]} 49. g5 {[%clk 0:00:48.7]} 49... c1=Q+ {[%clk 0:00:03.4]} 50.
Bxc1 {[%clk 0:00:48.6]} 50... Nxc1 {[%clk 0:00:04.3]} 51. h5 {[%clk 0:00:49]}
51... Kc4 {[%clk 0:00:03.9]} 52. g6 {[%clk 0:00:49.2]} 52... Nd3+ {[%clk
0:00:04.1]} 53. Kf1 {[%clk 0:00:47.4]} 53... hxg6 {[%clk 0:00:05]} 54. hxg6
{[%clk 0:00:47.5]} 1-0

[Event "Early-Titled-Tuesday-Blitz-October-10-2023"]
[Site "Chess.com"]
[Date "2023.10.10"]
[Round "10"]
[White "mr_gustavo"]
[Black "ozates"]
[Result "0-1"]
[WhiteElo "2648"]
[BlackElo "2779"]
[TimeControl "180+1"]
[EndTime "9:54:16 PDT"]
[Termination "ozates won by resignation"]

1. e4 {[%clk 0:02:34.2]} 1... e5 {[%clk 0:02:58.7]} 2. Nf3 {[%clk 0:02:33.5]}
2... Nc6 {[%clk 0:02:59.2]} 3. Nc3 {[%clk 0:02:33.4]} 3... g6 {[%clk 0:02:58.7]}
4. Bc4 {[%clk 0:02:30.3]} 4... Bg7 {[%clk 0:02:58.7]} 5. d3 {[%clk 0:02:30.3]}
5... Nge7 {[%clk 0:02:45.7]} 6. a4 {[%clk 0:02:30.7]} 6... O-O {[%clk
0:02:45.9]} 7. O-O {[%clk 0:02:29.8]} 7... d6 {[%clk 0:02:45.9]} 8. Nd5 {[%clk
0:02:25.6]} 8... h6 {[%clk 0:02:44.9]} 9. c3 {[%clk 0:02:24.5]} 9... Kh7 {[%clk
0:02:43.7]} 10. d4 {[%clk 0:02:21.3]} 10... exd4 {[%clk 0:02:32.8]} 11. Nxd4
{[%clk 0:02:20.2]} 11... Nxd4 {[%clk 0:02:27.9]} 12. cxd4 {[%clk 0:02:21.1]}
12... c6 {[%clk 0:02:24.2]} 13. Nxe7 {[%clk 0:02:20.6]} 13... Qxe7 {[%clk
0:02:25.1]} 14. Re1 {[%clk 0:02:20.5]} 14... Be6 {[%clk 0:02:09]} 15. Bxe6
{[%clk 0:02:10.6]} 15... fxe6 {[%clk 0:02:09.2]} 16. d5 {[%clk 0:02:08.4]} 16...
exd5 {[%clk 0:01:54.9]} 17. exd5 {[%clk 0:02:06.4]} 17... Qf6 {[%clk 0:01:53.6]}
18. Be3 {[%clk 0:02:05]} 18... c5 {[%clk 0:01:53.6]} 19. Qd3 {[%clk 0:01:59.3]}
19... Rae8 {[%clk 0:01:52.9]} 20. Rab1 {[%clk 0:01:55.7]} 20... Qf5 {[%clk
0:01:41]} 21. Qc4 {[%clk 0:01:47.8]} 21... Re4 {[%clk 0:01:38.3]} 22. Qb5 {[%clk
0:01:31.6]} 22... Rf7 {[%clk 0:01:07.5]} 23. Rbd1 {[%clk 0:01:30.3]} 23... Rb4
{[%clk 0:01:04.2]} 24. Qe8 {[%clk 0:01:06.9]} 24... Rxb2 {[%clk 0:01:03.3]} 25.
Qe6 {[%clk 0:01:00]} 25... c4 {[%clk 0:00:52.3]} 26. Qxd6 {[%clk 0:00:58.1]}
26... c3 {[%clk 0:00:47.8]} 27. Rc1 {[%clk 0:00:54.4]} 27... Rd2 {[%clk
0:00:25.2]} 28. Red1 {[%clk 0:00:45.5]} 28... Rxd1+ {[%clk 0:00:20.8]} 29. Rxd1
{[%clk 0:00:46.4]} 29... c2 {[%clk 0:00:21.5]} 30. Rf1 {[%clk 0:00:39.7]} 30...
Bb2 {[%clk 0:00:17.1]} 31. Qc5 {[%clk 0:00:37.1]} 31... b6 {[%clk 0:00:14.2]}
32. Qc4 {[%clk 0:00:33.4]} 32... Be5 {[%clk 0:00:13.7]} 33. Rc1 {[%clk
0:00:31.2]} 33... Rc7 {[%clk 0:00:13.5]} 34. Qf1 {[%clk 0:00:14.1]} 34... Bb2
{[%clk 0:00:10.8]} 35. Re1 {[%clk 0:00:14.7]} 35... Qxd5 {[%clk 0:00:09.8]} 36.
Bc1 {[%clk 0:00:13.5]} 36... Bxc1 {[%clk 0:00:10]} 37. Rxc1 {[%clk 0:00:14.4]}
37... Qd2 {[%clk 0:00:10.6]} 38. h4 {[%clk 0:00:10.8]} 38... Rd7 {[%clk
0:00:10.5]} 39. Kh2 {[%clk 0:00:09]} 39... Qd1 {[%clk 0:00:10]} 40. h5 {[%clk
0:00:05.4]} 40... Qxf1 {[%clk 0:00:09.2]} 0-1

[Event "Early-Titled-Tuesday-Blitz-October-10-2023"]
[Site "Chess.com"]
[Date "2023.10.10"]
[Round "10"]
[White "LUISMIGUELOV"]
[Black "maracayo"]
[Result "0-1"]
[WhiteElo "2156"]
[BlackElo "2377"]
[TimeControl "180+1"]
[EndTime "9:54:22 PDT"]
[Termination "maracayo won by resignation"]

1. d4 {[%clk 0:02:59.2]} 1... Nf6 {[%clk 0:02:59.3]} 2. c3 {[%clk 0:02:58.4]}
2... d6 {[%clk 0:02:59.2]} 3. Bg5 {[%clk 0:02:56.7]} 3... e5 {[%clk 0:02:59]} 4.
dxe5 {[%clk 0:02:51.9]} 4... dxe5 {[%clk 0:02:59.9]} 5. Qxd8+ {[%clk 0:02:50.8]}
5... Kxd8 {[%clk 0:03:00.8]} 6. Bxf6+ {[%clk 0:02:49.3]} 6... gxf6 {[%clk
0:03:00.2]} 7. Nd2 {[%clk 0:02:47.3]} 7... Be6 {[%clk 0:02:58.9]} 8. e3 {[%clk
0:02:38.2]} 8... Nd7 {[%clk 0:02:58.2]} 9. Bc4 {[%clk 0:02:38]} 9... Nc5 {[%clk
0:02:55]} 10. Bxe6 {[%clk 0:02:27.2]} 10... fxe6 {[%clk 0:02:54]} 11. Ke2 {[%clk
0:02:27.4]} 11... c6 {[%clk 0:02:34.5]} 12. Rd1 {[%clk 0:02:19.4]} 12... Kc7
{[%clk 0:02:33.5]} 13. Ngf3 {[%clk 0:02:10.8]} 13... Bg7 {[%clk 0:01:50.8]} 14.
Nb3 {[%clk 0:02:09]} 14... Na4 {[%clk 0:01:48.9]} 15. Rb1 {[%clk 0:01:39.7]}
15... c5 {[%clk 0:01:40.1]} 16. c4 {[%clk 0:01:30.5]} 16... e4 {[%clk
0:01:35.9]} 17. Nfd2 {[%clk 0:01:28]} 17... f5 {[%clk 0:01:34.9]} 18. g3 {[%clk
0:01:11.6]} 18... b6 {[%clk 0:01:26.6]} 19. f3 {[%clk 0:01:06.9]} 19... Bxb2
{[%clk 0:01:23.9]} 20. fxe4 {[%clk 0:01:04.6]} 20... Nc3+ {[%clk 0:01:22.8]} 21.
Kf3 {[%clk 0:00:59.6]} 21... fxe4+ {[%clk 0:01:18.7]} 22. Nxe4 {[%clk
0:00:56.2]} 22... Raf8+ {[%clk 0:01:15]} 23. Kg2 {[%clk 0:00:48.5]} 23... Nxb1
{[%clk 0:01:11.1]} 24. Rxb1 {[%clk 0:00:47]} 24... Bf6 {[%clk 0:01:06.9]} 25.
Nbd2 {[%clk 0:00:44.9]} 25... Be7 {[%clk 0:01:01.4]} 26. Nf3 {[%clk 0:00:43.5]}
26... h5 {[%clk 0:00:50.6]} 27. h4 {[%clk 0:00:41.8]} 27... Rf5 {[%clk
0:00:49.4]} 28. Rd1 {[%clk 0:00:39.6]} 28... Rd8 {[%clk 0:00:48.7]} 29. Rxd8
{[%clk 0:00:37.4]} 29... Bxd8 {[%clk 0:00:47.1]} 30. a4 {[%clk 0:00:37.3]} 30...
a6 {[%clk 0:00:32.8]} 31. Nfd2 {[%clk 0:00:32.9]} 31... Kc6 {[%clk 0:00:29.9]}
32. Nb3 {[%clk 0:00:30]} 32... Be7 {[%clk 0:00:25.3]} 33. a5 {[%clk 0:00:27.5]}
33... b5 {[%clk 0:00:23]} 34. cxb5+ {[%clk 0:00:26.2]} 34... Kxb5 {[%clk
0:00:18.3]} 35. g4 {[%clk 0:00:13.8]} 35... hxg4 {[%clk 0:00:18]} 36. Kg3 {[%clk
0:00:13.9]} 36... Kb4 {[%clk 0:00:17.1]} 37. Nbd2 {[%clk 0:00:11.7]} 37... c4
{[%clk 0:00:15.7]} 38. Kxg4 {[%clk 0:00:10.9]} 38... c3 {[%clk 0:00:15.4]} 39.
Nxc3 {[%clk 0:00:07.6]} 39... Kxc3 {[%clk 0:00:14.9]} 40. Ne4+ {[%clk
0:00:07.3]} 40... Kd3 {[%clk 0:00:13.7]} 41. h5 {[%clk 0:00:06.3]} 41... Kxe4
{[%clk 0:00:12.2]} 42. h6 {[%clk 0:00:05.3]} 42... Rg5+ {[%clk 0:00:11.5]} 0-1